[Event "Titled Tuesday Blitz November 15 Late 2022"]
[White "Svane, Frederik"]
[Black "Svane, Rasmus"]
[WhiteFideId "12923044"]
[BlackFideId "4657101"]
[WhiteElo "2466"]
[BlackElo "2674"]
[Result "1/2-1/2"]
[Round "09"]
[TimeControl "180+1"]
[Date "2022.11.15"]
[WhiteClock "0:00:05"]
[BlackClock "0:00:08"]

1. c4 {[%clk 0:03:00]}  Nf6 {[%clk 0:02:56]} 2. Nc3 {[%clk 0:02:57]}  e5 {[%clk 0:02:57]} 3. Nf3 {[%clk 0:02:55]}  Nc6 {[%clk 0:02:57]} 4. e4 {[%clk 0:02:56]}  Bb4 {[%clk 0:02:54]} 5. d3 {[%clk 0:02:56]}  d6 {[%clk 0:02:54]} 6. a3 {[%clk 0:02:52]}  Bc5 {[%clk 0:02:54]} 7. b4 {[%clk 0:02:52]}  Bb6 {[%clk 0:02:51]} 8. Be3 {[%clk 0:02:52]}  Bg4 {[%clk 0:02:47]} 9. Be2 {[%clk 0:02:48]}  Bxf3 {[%clk 0:02:47]} 10. Bxf3 {[%clk 0:02:49]}  Nd4 {[%clk 0:02:48]} 11. Na4 {[%clk 0:02:38]}  Nxf3+ {[%clk 0:02:35]} 12. Qxf3 {[%clk 0:02:39]}  Bxe3 {[%clk 0:02:35]} 13. fxe3 {[%clk 0:02:40]}  O-O {[%clk 0:02:29]} 14. O-O {[%clk 0:02:39]}  c6 {[%clk 0:02:29]} 15. Nc3 {[%clk 0:02:39]}  Qe7 {[%clk 0:02:29]} 16. Rf2 {[%clk 0:02:27]}  Rad8 {[%clk 0:02:28]} 17. h3 {[%clk 0:02:22]}  Qe6 {[%clk 0:02:28]} 18. Raf1 {[%clk 0:02:07]}  Rd7 {[%clk 0:02:17]} 19. Ne2 {[%clk 0:01:39]}  d5 {[%clk 0:02:09]} 20. exd5 {[%clk 0:01:06]}  cxd5 {[%clk 0:02:10]} 21. Qg3 {[%clk 0:00:58]}  Kh8 {[%clk 0:01:36]} 22. c5 {[%clk 0:00:58]}  b6 {[%clk 0:01:28]} 23. Rf5 {[%clk 0:00:57]}  Re8 {[%clk 0:01:23]} 24. Rg5 {[%clk 0:00:22]}  h6 {[%clk 0:01:17]} 25. Rgf5 {[%clk 0:00:18]}  d4 {[%clk 0:01:10]} 26. Qh4 {[%clk 0:00:14]}  Nh7 {[%clk 0:01:07]} 27. exd4 {[%clk 0:00:04]}  exd4 {[%clk 0:01:07]} 28. Ng3 {[%clk 0:00:04]}  f6 {[%clk 0:00:51]} 29. Ne4 {[%clk 0:00:04]}  Rd5 {[%clk 0:00:30]} 30. Rxd5 {[%clk 0:00:04]}  Qxd5 {[%clk 0:00:31]} 31. Qg3 {[%clk 0:00:04]}  Ng5 {[%clk 0:00:29]} 32. Nxg5 {[%clk 0:00:04]}  hxg5 {[%clk 0:00:29]} 33. Rc1 {[%clk 0:00:05]}  Rc8 {[%clk 0:00:27]} 34. Qf3 {[%clk 0:00:04]}  Qxf3 {[%clk 0:00:17]} 35. gxf3 {[%clk 0:00:05]}  Kg8 {[%clk 0:00:18]} 36. Rc4 {[%clk 0:00:06]}  Kf7 {[%clk 0:00:17]} 37. Rxd4 {[%clk 0:00:06]}  bxc5 {[%clk 0:00:17]} 38. bxc5 {[%clk 0:00:07]}  Rxc5 {[%clk 0:00:15]} 39. Rd7+ {[%clk 0:00:07]}  Kg6 {[%clk 0:00:15]} 40. Rxa7 {[%clk 0:00:07]}  Rc3 {[%clk 0:00:16]} 41. Kf2 {[%clk 0:00:07]}  Rxd3 {[%clk 0:00:16]} 42. a4 {[%clk 0:00:07]}  Ra3 {[%clk 0:00:15]} 43. Kg3 {[%clk 0:00:05]}  Ra1 {[%clk 0:00:13]} 44. a5 {[%clk 0:00:05]}  Ra3 {[%clk 0:00:10]} 45. a6 {[%clk 0:00:05]}  Ra4 {[%clk 0:00:11]} 46. Kf2 {[%clk 0:00:05]}  Kf5 {[%clk 0:00:10]} 47. Rxg7 {[%clk 0:00:03]}  Kf4 {[%clk 0:00:10]} 48. Re7 {[%clk 0:00:03]}  Ra2+ {[%clk 0:00:09]} 49. Re2 {[%clk 0:00:04]}  Rxa6 {[%clk 0:00:10]} 50. Re4+ {[%clk 0:00:04]}  Kf5 {[%clk 0:00:11]} 51. h4 {[%clk 0:00:05]}  Ra2+ {[%clk 0:00:07]} 52. Kg3 {[%clk 0:00:05]}  Ra1 {[%clk 0:00:07]} 53. hxg5 {[%clk 0:00:05]}  fxg5 {[%clk 0:00:08]} 54. Rb4 {[%clk 0:00:05]}  Ra5 {[%clk 0:00:08]} 55. Rc4 {[%clk 0:00:05]}  Rd5 {[%clk 0:00:08]} 56. Rb4 {[%clk 0:00:05]} 1/2-1/2


[Site "https://www.chess.com"]

[Event "Titled Tuesday Blitz November 15 Late 2022"]
[White "Szyszylo, Rafal"]
[Black "Brown, Andrew"]
[WhiteFideId "1109626"]
[BlackFideId "3206513"]
[WhiteElo "1981"]
[BlackElo "2245"]
[Result "0-1"]
[Round "09"]
[TimeControl "180+1"]
[Date "2022.11.16"]
[WhiteClock "0:00:46"]
[BlackClock "0:00:53"]

1. e4 {[%clk 0:03:00]}  g6 {[%clk 0:03:00]} 2. d4 {[%clk 0:02:59]}  Bg7 {[%clk 0:03:01]} 3. Nc3 {[%clk 0:02:59]}  c6 {[%clk 0:02:56]} 4. Nf3 {[%clk 0:02:55]}  d5 {[%clk 0:02:56]} 5. h3 {[%clk 0:02:52]}  dxe4 {[%clk 0:02:55]} 6. Nxe4 {[%clk 0:02:53]}  Nf6 {[%clk 0:02:55]} 7. Nxf6+ {[%clk 0:02:53]}  exf6 {[%clk 0:02:56]} 8. Bc4 {[%clk 0:02:53]}  Qe7+ {[%clk 0:02:56]} 9. Be3 {[%clk 0:02:51]}  Qb4+ {[%clk 0:02:56]} 10. Nd2 {[%clk 0:02:51]}  Qxb2 {[%clk 0:02:56]} 11. O-O {[%clk 0:02:13]}  O-O {[%clk 0:02:56]} 12. Rb1 {[%clk 0:01:55]}  Qa3 {[%clk 0:02:54]} 13. Qf3 {[%clk 0:01:48]}  Nd7 {[%clk 0:02:47]} 14. Ne4 {[%clk 0:01:47]}  f5 {[%clk 0:02:42]} 15. Ng5 {[%clk 0:01:43]}  h6 {[%clk 0:02:17]} 16. Nxf7 {[%clk 0:01:33]}  Rxf7 {[%clk 0:02:17]} 17. Qg3 {[%clk 0:01:33]}  g5 {[%clk 0:02:06]} 18. Qc7 {[%clk 0:01:20]}  f4 {[%clk 0:01:51]} 19. Bc1 {[%clk 0:01:10]}  Qf8 {[%clk 0:01:30]} 20. Re1 {[%clk 0:01:10]}  Nb6 {[%clk 0:01:10]} 21. Bxf7+ {[%clk 0:01:04]}  Qxf7 {[%clk 0:01:09]} 22. Qd8+ {[%clk 0:00:50]}  Bf8 {[%clk 0:01:04]} 23. Ba3 {[%clk 0:00:46]}  Bf5 {[%clk 0:00:53]} 0-1


[Site "https://www.chess.com"]

[Event "Titled Tuesday Blitz November 15 Late 2022"]
[White "Timmermans, Mark"]
[Black "vjecspec"]
[WhiteFideId "1026399"]
[WhiteElo "2460"]
[BlackElo "2540"]
[Result "0-1"]
[Round "09"]
[TimeControl "180+1"]
[Date "2022.11.16"]
[WhiteClock "0:00:14"]
[BlackClock "0:00:46"]

1. b4 {[%clk 0:03:00]}  c6 {[%clk 0:02:58]} 2. Bb2 {[%clk 0:03:00]}  a5 {[%clk 0:02:59]} 3. b5 {[%clk 0:03:00]}  cxb5 {[%clk 0:02:57]} 4. e4 {[%clk 0:03:00]}  b4 {[%clk 0:02:57]} 5. a3 {[%clk 0:03:01]}  e6 {[%clk 0:02:47]} 6. axb4 {[%clk 0:03:00]}  Nf6 {[%clk 0:02:44]} 7. e5 {[%clk 0:03:00]}  Nd5 {[%clk 0:02:44]} 8. b5 {[%clk 0:02:59]}  Be7 {[%clk 0:02:41]} 9. Nf3 {[%clk 0:02:52]}  O-O {[%clk 0:02:41]} 10. Be2 {[%clk 0:02:51]}  d6 {[%clk 0:02:37]} 11. O-O {[%clk 0:02:46]}  Nd7 {[%clk 0:02:36]} 12. exd6 {[%clk 0:02:38]}  Bxd6 {[%clk 0:02:37]} 13. Na3 {[%clk 0:02:39]}  N7b6 {[%clk 0:02:22]} 14. Re1 {[%clk 0:02:37]}  Be7 {[%clk 0:02:22]} 15. c4 {[%clk 0:02:34]}  Nb4 {[%clk 0:02:21]} 16. d4 {[%clk 0:02:34]}  Bf6 {[%clk 0:02:21]} 17. Nc2 {[%clk 0:02:32]}  Nxc2 {[%clk 0:02:10]} 18. Qxc2 {[%clk 0:02:33]}  Bd7 {[%clk 0:02:08]} 19. Ne5 {[%clk 0:02:25]}  Qc7 {[%clk 0:02:03]} 20. c5 {[%clk 0:01:39]}  Nd5 {[%clk 0:01:56]} 21. Bd3 {[%clk 0:01:39]}  g6 {[%clk 0:01:52]} 22. b6 {[%clk 0:01:38]}  Qc8 {[%clk 0:01:50]} 23. Nc4 {[%clk 0:01:36]}  Nb4 {[%clk 0:01:49]} 24. Qd2 {[%clk 0:01:36]}  Nxd3 {[%clk 0:01:50]} 25. Qxd3 {[%clk 0:01:37]}  Bb5 {[%clk 0:01:50]} 26. Qb3 {[%clk 0:01:35]}  Bxc4 {[%clk 0:01:50]} 27. Qxc4 {[%clk 0:01:36]}  Qc6 {[%clk 0:01:49]} 28. Ra4 {[%clk 0:01:30]}  Rfd8 {[%clk 0:01:44]} 29. Rea1 {[%clk 0:01:29]}  Qe4 {[%clk 0:01:34]} 30. h3 {[%clk 0:01:27]}  Kg7 {[%clk 0:01:30]} 31. Bc3 {[%clk 0:01:25]}  Rd5 {[%clk 0:01:20]} 32. Kf1 {[%clk 0:01:12]}  Rad8 {[%clk 0:01:17]} 33. Rd1 {[%clk 0:01:09]}  e5 {[%clk 0:01:15]} 34. Re1 {[%clk 0:01:08]}  Qf5 {[%clk 0:01:09]} 35. dxe5 {[%clk 0:01:07]}  Bxe5 {[%clk 0:01:07]} 36. Bxe5+ {[%clk 0:00:48]}  Rxe5 {[%clk 0:01:07]} 37. Qc3 {[%clk 0:00:48]}  f6 {[%clk 0:01:06]} 38. Rxe5 {[%clk 0:00:48]}  fxe5 {[%clk 0:01:02]} 39. Rxa5 {[%clk 0:00:45]}  Qe4 {[%clk 0:00:56]} 40. Ra1 {[%clk 0:00:40]}  Rd3 {[%clk 0:00:56]} 41. Re1 {[%clk 0:00:38]}  Rxc3 {[%clk 0:00:55]} 42. Rxe4 {[%clk 0:00:38]}  Rxc5 {[%clk 0:00:55]} 43. f4 {[%clk 0:00:39]}  Rb5 {[%clk 0:00:54]} 44. fxe5 {[%clk 0:00:37]}  Rxb6 {[%clk 0:00:54]} 45. e6 {[%clk 0:00:37]}  Kf8 {[%clk 0:00:54]} 46. e7+ {[%clk 0:00:37]}  Ke8 {[%clk 0:00:54]} 47. g4 {[%clk 0:00:38]}  Rd6 {[%clk 0:00:50]} 48. Kg2 {[%clk 0:00:36]}  Rd7 {[%clk 0:00:50]} 49. Kg3 {[%clk 0:00:29]}  Rxe7 {[%clk 0:00:51]} 50. Rd4 {[%clk 0:00:27]}  Rd7 {[%clk 0:00:50]} 51. Rc4 {[%clk 0:00:27]}  Kd8 {[%clk 0:00:51]} 52. h4 {[%clk 0:00:26]}  b5 {[%clk 0:00:51]} 53. Rc6 {[%clk 0:00:25]}  Rb7 {[%clk 0:00:51]} 54. Kf4 {[%clk 0:00:19]}  b4 {[%clk 0:00:51]} 55. Rc1 {[%clk 0:00:20]}  b3 {[%clk 0:00:52]} 56. Ke4 {[%clk 0:00:20]}  b2 {[%clk 0:00:51]} 57. Rb1 {[%clk 0:00:20]}  Ke7 {[%clk 0:00:51]} 58. h5 {[%clk 0:00:19]}  g5 {[%clk 0:00:48]} 59. Kf5 {[%clk 0:00:16]}  Rb5+ {[%clk 0:00:46]} 60. Ke4 {[%clk 0:00:17]}  Ke6 {[%clk 0:00:47]} 61. Ke3 {[%clk 0:00:14]}  Ke5 {[%clk 0:00:46]} 0-1


[Site "https://www.chess.com"]

[Event "Titled Tuesday Blitz November 15 Late 2022"]
[White "Vlassov, Nikolai"]
[Black "Harshal, Shahi"]
[WhiteFideId "4103360"]
[BlackFideId "5048257"]
[WhiteElo "2324"]
[BlackElo "2054"]
[Result "1-0"]
[Round "09"]
[TimeControl "180+1"]
[Date "2022.11.16"]
[WhiteClock "0:01:38"]
[BlackClock "0:00:01"]

1. e4 {[%clk 0:03:00]}  c5 {[%clk 0:02:54]} 2. c3 {[%clk 0:03:00]}  d5 {[%clk 0:02:51]} 3. exd5 {[%clk 0:03:00]}  Qxd5 {[%clk 0:02:52]} 4. d4 {[%clk 0:03:00]}  Nf6 {[%clk 0:02:48]} 5. Nf3 {[%clk 0:03:00]}  Bg4 {[%clk 0:02:47]} 6. dxc5 {[%clk 0:02:59]}  Qxd1+ {[%clk 0:02:38]} 7. Kxd1 {[%clk 0:02:59]}  e5 {[%clk 0:02:38]} 8. Be3 {[%clk 0:02:59]}  e4 {[%clk 0:02:33]} 9. h3 {[%clk 0:02:58]}  Bh5 {[%clk 0:02:19]} 10. g4 {[%clk 0:02:58]}  Nxg4 {[%clk 0:02:19]} 11. hxg4 {[%clk 0:02:58]}  Bxg4 {[%clk 0:02:20]} 12. Nd2 {[%clk 0:02:58]}  exf3 {[%clk 0:02:18]} 13. Bh3 {[%clk 0:02:58]}  f5 {[%clk 0:02:12]} 14. Kc2 {[%clk 0:02:57]}  Nd7 {[%clk 0:02:08]} 15. b4 {[%clk 0:02:57]}  O-O-O {[%clk 0:02:05]} 16. Rag1 {[%clk 0:02:56]}  Ne5 {[%clk 0:01:51]} 17. Bd4 {[%clk 0:02:56]}  Nc6 {[%clk 0:00:50]} 18. Bxg4 {[%clk 0:02:55]}  fxg4 {[%clk 0:00:47]} 19. Rxg4 {[%clk 0:02:54]}  h5 {[%clk 0:00:46]} 20. Re4 {[%clk 0:02:51]}  Nxd4+ {[%clk 0:00:13]} 21. cxd4 {[%clk 0:02:50]}  g5 {[%clk 0:00:14]} 22. Nxf3 {[%clk 0:02:49]}  Bg7 {[%clk 0:00:14]} 23. Kd3 {[%clk 0:02:45]}  g4 {[%clk 0:00:13]} 24. Ng5 {[%clk 0:02:45]}  Rdf8 {[%clk 0:00:12]} 25. Ne6 {[%clk 0:02:23]}  Rf3+ {[%clk 0:00:12]} 26. Kc4 {[%clk 0:02:15]}  Re8 {[%clk 0:00:10]} 27. Rxh5 {[%clk 0:02:12]}  Rxf2 {[%clk 0:00:09]} 28. Rg5 {[%clk 0:02:03]}  Bf6 {[%clk 0:00:04]} 29. Rgxg4 {[%clk 0:02:01]}  Rxa2 {[%clk 0:00:05]} 30. d5 {[%clk 0:01:59]}  Rc2+ {[%clk 0:00:05]} 31. Kd3 {[%clk 0:01:57]}  Rc3+ {[%clk 0:00:04]} 32. Kd2 {[%clk 0:01:57]}  Rb3 {[%clk 0:00:04]} 33. Rgf4 {[%clk 0:01:42]}  Bd8 {[%clk 0:00:01]} 34. d6 {[%clk 0:01:38]} 1-0


[Site "https://www.chess.com"]

[Event "Titled Tuesday Blitz November 15 Late 2022"]
[White "Winterberg, Lukas"]
[Black "Hambleton, Aman"]
[WhiteFideId "24622702"]
[BlackFideId "2606577"]
[WhiteElo "2349"]
[BlackElo "2538"]
[Result "1/2-1/2"]
[Round "09"]
[TimeControl "180+1"]
[Date "2022.11.16"]
[WhiteClock "0:00:49"]
[BlackClock "0:00:27"]

1. d4 {[%clk 0:03:00]}  Nf6 {[%clk 0:02:58]} 2. Nf3 {[%clk 0:03:01]}  e6 {[%clk 0:02:57]} 3. c4 {[%clk 0:03:02]}  b6 {[%clk 0:02:57]} 4. g3 {[%clk 0:03:02]}  Ba6 {[%clk 0:02:57]} 5. b3 {[%clk 0:03:02]}  Bb4+ {[%clk 0:02:57]} 6. Bd2 {[%clk 0:03:02]}  c5 {[%clk 0:02:58]} 7. Bg2 {[%clk 0:03:02]}  Bb7 {[%clk 0:02:58]} 8. O-O {[%clk 0:03:01]}  O-O {[%clk 0:02:58]} 9. Bf4 {[%clk 0:02:54]}  cxd4 {[%clk 0:02:49]} 10. Nxd4 {[%clk 0:02:52]}  Bxg2 {[%clk 0:02:46]} 11. Kxg2 {[%clk 0:02:53]}  d5 {[%clk 0:02:33]} 12. cxd5 {[%clk 0:02:36]}  Qxd5+ {[%clk 0:02:06]} 13. Nf3 {[%clk 0:02:36]}  Nc6 {[%clk 0:02:03]} 14. a3 {[%clk 0:02:34]}  Be7 {[%clk 0:02:00]} 15. Ra2 {[%clk 0:02:33]}  Rfd8 {[%clk 0:01:34]} 16. Rd2 {[%clk 0:02:30]}  Qb5 {[%clk 0:01:25]} 17. Qc2 {[%clk 0:01:59]}  Rxd2 {[%clk 0:00:47]} 18. Bxd2 {[%clk 0:02:00]}  Rc8 {[%clk 0:00:42]} 19. Nc3 {[%clk 0:02:00]}  Qa6 {[%clk 0:00:37]} 20. a4 {[%clk 0:01:48]}  h6 {[%clk 0:00:16]} 21. Rc1 {[%clk 0:01:36]}  Qb7 {[%clk 0:00:14]} 22. Nb5 {[%clk 0:01:34]}  a6 {[%clk 0:00:14]} 23. Nbd4 {[%clk 0:01:34]}  Na7 {[%clk 0:00:14]} 24. Qd3 {[%clk 0:01:29]}  Rxc1 {[%clk 0:00:14]} 25. Bxc1 {[%clk 0:01:30]}  b5 {[%clk 0:00:09]} 26. axb5 {[%clk 0:01:29]}  Nxb5 {[%clk 0:00:08]} 27. Nxb5 {[%clk 0:01:23]}  axb5 {[%clk 0:00:09]} 28. Kg1 {[%clk 0:01:22]}  Ne4 {[%clk 0:00:03]} 29. Nd4 {[%clk 0:01:19]}  b4 {[%clk 0:00:04]} 30. f3 {[%clk 0:01:17]}  Nc5 {[%clk 0:00:04]} 31. Qc4 {[%clk 0:01:16]}  Qd5 {[%clk 0:00:03]} 32. Qxd5 {[%clk 0:01:12]}  exd5 {[%clk 0:00:04]} 33. Bd2 {[%clk 0:01:12]}  Bf6 {[%clk 0:00:04]} 34. Nc6 {[%clk 0:01:05]}  Bc3 {[%clk 0:00:03]} 35. Be3 {[%clk 0:00:58]}  Nxb3 {[%clk 0:00:04]} 36. Ne7+ {[%clk 0:00:58]}  Kh7 {[%clk 0:00:04]} 37. Nxd5 {[%clk 0:00:59]}  Na5 {[%clk 0:00:01]} 38. Bc5 {[%clk 0:00:48]}  Nc4 {[%clk 0:00:01]} 39. Bxb4 {[%clk 0:00:45]}  Bd4+ {[%clk 0:00:01]} 40. Kg2 {[%clk 0:00:44]}  Ne3+ {[%clk 0:00:02]} 41. Nxe3 {[%clk 0:00:44]}  Bxe3 {[%clk 0:00:03]} 42. f4 {[%clk 0:00:45]}  f5 {[%clk 0:00:02]} 43. Kf3 {[%clk 0:00:45]}  Bg1 {[%clk 0:00:02]} 44. h3 {[%clk 0:00:46]}  Bb6 {[%clk 0:00:02]} 45. Bd6 {[%clk 0:00:39]}  g6 {[%clk 0:00:02]} 46. g4 {[%clk 0:00:37]}  Kg8 {[%clk 0:00:03]} 47. e4 {[%clk 0:00:37]}  fxe4+ {[%clk 0:00:03]} 48. Kxe4 {[%clk 0:00:38]}  Kf7 {[%clk 0:00:03]} 49. Be5 {[%clk 0:00:38]}  Bd8 {[%clk 0:00:03]} 50. Kd5 {[%clk 0:00:38]}  h5 {[%clk 0:00:03]} 51. Kc6 {[%clk 0:00:37]}  hxg4 {[%clk 0:00:03]} 52. hxg4 {[%clk 0:00:38]}  Be7 {[%clk 0:00:04]} 53. Bd6 {[%clk 0:00:37]}  Bf6 {[%clk 0:00:04]} 54. Kd5 {[%clk 0:00:38]}  Bd8 {[%clk 0:00:04]} 55. Bc5 {[%clk 0:00:38]}  Bf6 {[%clk 0:00:04]} 56. Bd4 {[%clk 0:00:37]}  Bd8 {[%clk 0:00:04]} 57. Kd6 {[%clk 0:00:37]}  Be7+ {[%clk 0:00:05]} 58. Kd7 {[%clk 0:00:38]}  Bf8 {[%clk 0:00:05]} 59. Be5 {[%clk 0:00:37]}  Bc5 {[%clk 0:00:06]} 60. Kc6 {[%clk 0:00:37]}  Be3 {[%clk 0:00:06]} 61. Kd5 {[%clk 0:00:37]}  Bd2 {[%clk 0:00:07]} 62. Ke4 {[%clk 0:00:37]}  Bc1 {[%clk 0:00:07]} 63. Bd4 {[%clk 0:00:38]}  Bd2 {[%clk 0:00:08]} 64. Be3 {[%clk 0:00:38]}  Bc3 {[%clk 0:00:08]} 65. Kd3 {[%clk 0:00:38]}  Bb4 {[%clk 0:00:09]} 66. Kc4 {[%clk 0:00:38]}  Ba3 {[%clk 0:00:09]} 67. Bc5 {[%clk 0:00:38]}  Bc1 {[%clk 0:00:10]} 68. Bd6 {[%clk 0:00:38]}  Ke6 {[%clk 0:00:10]} 69. Bb8 {[%clk 0:00:38]}  Bd2 {[%clk 0:00:10]} 70. Kd3 {[%clk 0:00:38]}  Bb4 {[%clk 0:00:10]} 71. Ke4 {[%clk 0:00:39]}  Ba3 {[%clk 0:00:10]} 72. f5+ {[%clk 0:00:38]}  gxf5+ {[%clk 0:00:10]} 73. gxf5+ {[%clk 0:00:39]}  Kf7 {[%clk 0:00:11]} 74. Be5 {[%clk 0:00:40]}  Be7 {[%clk 0:00:11]} 75. Bd4 {[%clk 0:00:41]}  Bf6 {[%clk 0:00:11]} 76. Bxf6 {[%clk 0:00:41]}  Kxf6 {[%clk 0:00:12]} 77. Kf4 {[%clk 0:00:42]}  Kf7 {[%clk 0:00:12]} 78. Kg4 {[%clk 0:00:43]}  Kf6 {[%clk 0:00:13]} 79. Kf4 {[%clk 0:00:43]}  Kf7 {[%clk 0:00:14]} 80. Kf3 {[%clk 0:00:43]}  Kf6 {[%clk 0:00:15]} 81. Ke4 {[%clk 0:00:44]}  Kf7 {[%clk 0:00:16]} 82. Ke5 {[%clk 0:00:45]}  Ke7 {[%clk 0:00:16]} 83. Kd5 {[%clk 0:00:45]}  Kf6 {[%clk 0:00:17]} 84. Ke4 {[%clk 0:00:46]}  Kf7 {[%clk 0:00:18]} 85. Ke5 {[%clk 0:00:44]}  Ke7 {[%clk 0:00:18]} 86. f6+ {[%clk 0:00:45]}  Kf7 {[%clk 0:00:19]} 87. Kf5 {[%clk 0:00:45]}  Kf8 {[%clk 0:00:19]} 88. Kf4 {[%clk 0:00:46]}  Kf7 {[%clk 0:00:20]} 89. Kg5 {[%clk 0:00:46]}  Kf8 {[%clk 0:00:21]} 90. Kg6 {[%clk 0:00:45]}  Kg8 {[%clk 0:00:22]} 91. Kh5 {[%clk 0:00:45]}  Kf7 {[%clk 0:00:22]} 92. Kg5 {[%clk 0:00:46]}  Kf8 {[%clk 0:00:23]} 93. Kf5 {[%clk 0:00:46]}  Kf7 {[%clk 0:00:24]} 94. Ke5 {[%clk 0:00:47]}  Kf8 {[%clk 0:00:25]} 95. Ke6 {[%clk 0:00:48]}  Ke8 {[%clk 0:00:26]} 96. f7+ {[%clk 0:00:48]}  Kf8 {[%clk 0:00:26]} 97. Kf5 {[%clk 0:00:49]}  Kxf7 {[%clk 0:00:27]} 1/2-1/2


[Site "https://www.chess.com"]

[Event "Titled Tuesday Blitz November 15 Late 2022"]
[White "Xiong, Jeffery"]
[Black "Nakamura, Hikaru"]
[WhiteFideId "2047640"]
[BlackFideId "2016192"]
[WhiteElo "2725"]
[BlackElo "2909"]
[Result "1-0"]
[Round "09"]
[TimeControl "180+1"]
[Date "2022.11.15"]
[WhiteClock "0:00:12"]
[BlackClock "0:00:03"]

1. d4 {[%clk 0:03:00]}  g6 {[%clk 0:03:00]} 2. Nf3 {[%clk 0:03:00]}  f5 {[%clk 0:02:58]} 3. h4 {[%clk 0:02:55]}  Bg7 {[%clk 0:02:43]} 4. h5 {[%clk 0:02:55]}  Nf6 {[%clk 0:02:44]} 5. h6 {[%clk 0:02:55]}  Bf8 {[%clk 0:02:43]} 6. c4 {[%clk 0:02:55]}  e6 {[%clk 0:02:43]} 7. Nc3 {[%clk 0:02:55]}  Bb4 {[%clk 0:02:42]} 8. Bg5 {[%clk 0:02:55]}  O-O {[%clk 0:02:42]} 9. e3 {[%clk 0:02:56]}  Qe8 {[%clk 0:02:43]} 10. Bd3 {[%clk 0:02:53]}  Bxc3+ {[%clk 0:02:41]} 11. bxc3 {[%clk 0:02:54]}  d6 {[%clk 0:02:41]} 12. c5 {[%clk 0:02:48]}  Ne4 {[%clk 0:02:24]} 13. cxd6 {[%clk 0:02:45]}  cxd6 {[%clk 0:02:13]} 14. Bxe4 {[%clk 0:02:40]}  fxe4 {[%clk 0:02:14]} 15. Nd2 {[%clk 0:02:40]}  d5 {[%clk 0:02:12]} 16. c4 {[%clk 0:02:36]}  Nc6 {[%clk 0:02:07]} 17. O-O {[%clk 0:02:32]}  Rf5 {[%clk 0:02:07]} 18. Qg4 {[%clk 0:02:23]}  Qf7 {[%clk 0:01:35]} 19. f4 {[%clk 0:01:50]}  Nb4 {[%clk 0:01:25]} 20. Qh4 {[%clk 0:01:47]}  Qd7 {[%clk 0:01:19]} 21. g4 {[%clk 0:01:27]}  Rf7 {[%clk 0:01:18]} 22. Bf6 {[%clk 0:01:27]}  Nc2 {[%clk 0:01:12]} 23. cxd5 {[%clk 0:01:11]}  exd5 {[%clk 0:01:12]} 24. f5 {[%clk 0:01:11]}  Nxe3 {[%clk 0:01:02]} 25. Rf4 {[%clk 0:00:43]}  b6 {[%clk 0:00:43]} 26. Qg5 {[%clk 0:00:37]}  Nxg4 {[%clk 0:00:33]} 27. Rxg4 {[%clk 0:00:15]}  Qxf5 {[%clk 0:00:33]} 28. Rf4 {[%clk 0:00:16]}  Qh3 {[%clk 0:00:16]} 29. Nf1 {[%clk 0:00:16]}  Bf5 {[%clk 0:00:11]} 30. Re1 {[%clk 0:00:15]}  Raf8 {[%clk 0:00:05]} 31. Re3 {[%clk 0:00:16]}  Qh5 {[%clk 0:00:02]} 32. Qxh5 {[%clk 0:00:13]}  gxh5 {[%clk 0:00:03]} 33. Bg7 {[%clk 0:00:12]}  Rc8 {[%clk 0:00:03]} 34. Rg3 {[%clk 0:00:10]}  Bg6 {[%clk 0:00:03]} 35. Rxf7 {[%clk 0:00:11]}  Kxf7 {[%clk 0:00:04]} 36. Ne3 {[%clk 0:00:12]}  Ke6 {[%clk 0:00:04]} 37. Rg5 {[%clk 0:00:12]}  Rc3 {[%clk 0:00:05]} 38. Re5+ {[%clk 0:00:12]}  Kd7 {[%clk 0:00:05]} 39. Nxd5 {[%clk 0:00:12]}  Rc1+ {[%clk 0:00:03]} 40. Kf2 {[%clk 0:00:12]}  h4 {[%clk 0:00:03]} 41. Nf6+ {[%clk 0:00:12]}  Kc6 {[%clk 0:00:02]} 42. d5+ {[%clk 0:00:12]}  Kb7 {[%clk 0:00:02]} 43. d6 {[%clk 0:00:12]}  Rc2+ {[%clk 0:00:02]} 44. Kg1 {[%clk 0:00:11]}  h3 {[%clk 0:00:03]} 45. d7 {[%clk 0:00:12]} 1-0


[Site "https://www.chess.com"]

[Event "Titled Tuesday Blitz November 15 Late 2022"]
[White "Young, Ryan"]
[Black "Yano, William Jorge Froes"]
[WhiteFideId "2049945"]
[BlackFideId "2112949"]
[WhiteElo "2281"]
[BlackElo "2122"]
[Result "0-1"]
[Round "09"]
[TimeControl "180+1"]
[Date "2022.11.16"]
[WhiteClock "0:00:02"]
[BlackClock "0:01:15"]

1. e4 {[%clk 0:03:00]}  e6 {[%clk 0:02:59]} 2. d4 {[%clk 0:02:59]}  d5 {[%clk 0:03:00]} 3. Nc3 {[%clk 0:02:59]}  Bb4 {[%clk 0:02:59]} 4. exd5 {[%clk 0:03:00]}  exd5 {[%clk 0:02:59]} 5. Bd3 {[%clk 0:03:00]}  Nc6 {[%clk 0:02:59]} 6. Ne2 {[%clk 0:03:00]}  Nge7 {[%clk 0:03:00]} 7. O-O {[%clk 0:02:58]}  Bg4 {[%clk 0:02:55]} 8. f3 {[%clk 0:02:57]}  Bh5 {[%clk 0:02:55]} 9. Be3 {[%clk 0:02:48]}  Qd7 {[%clk 0:02:54]} 10. Qd2 {[%clk 0:02:48]}  O-O-O {[%clk 0:02:53]} 11. a3 {[%clk 0:02:47]}  Bd6 {[%clk 0:02:53]} 12. b4 {[%clk 0:02:42]}  Rdg8 {[%clk 0:02:53]} 13. Nb5 {[%clk 0:02:32]}  g5 {[%clk 0:02:46]} 14. Nxd6+ {[%clk 0:02:31]}  Qxd6 {[%clk 0:02:47]} 15. c4 {[%clk 0:02:25]}  dxc4 {[%clk 0:02:44]} 16. Bxc4 {[%clk 0:02:16]}  g4 {[%clk 0:02:27]} 17. f4 {[%clk 0:02:07]}  Nf5 {[%clk 0:02:21]} 18. d5 {[%clk 0:01:48]}  Nce7 {[%clk 0:02:15]} 19. Bc5 {[%clk 0:01:44]}  Qf6 {[%clk 0:02:09]} 20. g3 {[%clk 0:01:31]}  Rd8 {[%clk 0:02:08]} 21. Bxa7 {[%clk 0:01:11]}  Bg6 {[%clk 0:02:06]} 22. a4 {[%clk 0:01:10]}  h5 {[%clk 0:02:04]} 23. a5 {[%clk 0:01:06]}  h4 {[%clk 0:02:05]} 24. a6 {[%clk 0:01:00]}  b6 {[%clk 0:02:00]} 25. Bb8 {[%clk 0:00:28]}  Kxb8 {[%clk 0:01:51]} 26. a7+ {[%clk 0:00:28]}  Ka8 {[%clk 0:01:52]} 27. Qa2 {[%clk 0:00:20]}  hxg3 {[%clk 0:01:51]} 28. hxg3 {[%clk 0:00:21]}  Nd4 {[%clk 0:01:34]} 29. Ba6 {[%clk 0:00:08]}  Nxe2+ {[%clk 0:01:23]} 30. Bxe2 {[%clk 0:00:05]}  Qd4+ {[%clk 0:01:23]} 31. Rf2 {[%clk 0:00:05]}  Rh1+ {[%clk 0:01:15]} 32. Kxh1 {[%clk 0:00:03]}  Qxf2 {[%clk 0:01:16]} 33. Bxg4 {[%clk 0:00:01]}  Rh8+ {[%clk 0:01:15]} 34. Bh3 {[%clk 0:00:02]}  Rxh3# {[%clk 0:01:15]} 0-1


[Site "https://www.chess.com"]